fUSD/lending_fUSD_20250629
["ID","MTS","AMOUNT","RATE_DAILY","PERIOD"]
[368609902,1751235041422,-151.0,0.00018304,2]
[368609904,1751235041432,-151.0,0.00018304,2]
[368609906,1751235041441,-151.0,0.00018304,2]
[368609908,1751235041451,-177.477986,0.00018304,2]
[368609910,1751235041461,-177.477986,0.00018304,2]
[368609913,1751235041471,-151.0,0.00018304,2]
[368609915,1751235041480,-151.0,0.00018304,2]
[368609917,1751235041490,-168.0,0.00018307,2]
[368609920,1751235041510,-151.0,0.0001831,2]
[368609922,1751235041520,-151.0,0.0001831,2]
[368609924,1751235041529,-151.0,0.0001831,2]
[368609926,1751235041538,-855.50237,0.0001831,2]
[368609928,1751235041548,-855.50237,0.0001831,2]
[368609930,1751235041557,-151.0,0.0001831,2]
[368609932,1751235041566,-151.0,0.0001831,2]
[368609934,1751235041576,-151.0,0.0001831,2]
[368609936,1751235041586,-151.0,0.0001831,2]
[368609938,1751235041595,-355.81657,0.0001831,2]
[368609940,1751235041605,-355.81657,0.0001831,2]
[368609942,1751235041615,-151.0,0.0001831,2]
[368609944,1751235041625,-151.0,0.0001831,2]
[368609946,1751235041634,-151.0,0.0001831,2]
[368609948,1751235041644,-289.242713,0.0001831,2]
[368609950,1751235041653,-289.242713,0.0001831,2]
[368609952,1751235041662,-151.0,0.0001831,2]
[368609954,1751235041672,-151.0,0.0001831,2]
[368609956,1751235041682,-151.0,0.0001831,2]
[368609958,1751235041691,-151.0,0.0001832,2]
[368609960,1751235041701,-151.0,0.0001832,2]
[368609962,1751235041711,-151.0,0.0001832,2]
[368609964,1751235041720,-151.0,0.0001832,2]
[368609967,1751235041730,-125.90821239,0.0001832,2]
[368609969,1751235041743,-26.51153361,0.0001832,2]
[368609971,1751235041753,-151.0,0.0001832,2]
[368609973,1751235041763,-221.885302,0.0001832,2]
[368609975,1751235041772,-151.0,0.0001832,2]
[368609977,1751235041783,-158.607304,0.0001832,2]
[368609979,1751235041793,-158.607304,0.0001832,2]
[368609981,1751235041806,-154.53346,0.0001832,2]
[368609983,1751235041815,-151.0,0.0001832,2]
[368609985,1751235041825,-157.413818,0.0001832,2]
[368609987,1751235041835,-177.477986,0.0001832,2]
[368609989,1751235041844,-177.477986,0.0001832,2]
[368609991,1751235041854,-151.0,0.0001832,2]
[368609993,1751235041863,-151.0,0.0001832,2]
[368609995,1751235041874,-172.710728,0.0001832,2]
[368609997,1751235041883,-152.27052897,0.0001832,2]
[368609999,1751235041893,-151.0,0.0001832,2]
[368610002,1751235041904,-407.518621,0.00018346,2]
[368610004,1751235041913,-407.518621,0.00018346,2]
[368610006,1751235041922,-151.0,0.00018346,2]
[368610008,1751235041933,-151.0,0.00018346,2]
[368610010,1751235041943,-151.0,0.00018346,2]
[368610012,1751235041952,-151.0,0.00018346,2]
[368610014,1751235041962,-500.0,0.00018346,2]
[368610016,1751235041972,-150.0,0.00018346,2]
[368610018,1751235041981,-150.0,0.00018346,2]
[368610020,1751235041991,-150.0,0.00018346,2]
[368610022,1751235042000,-500.0,0.00018346,2]
[368610024,1751235042010,-150.0,0.00018346,2]
[368610026,1751235042019,-151.00416533,0.00018346,2]
[368610028,1751235042029,-151.0,0.00018346,2]
[368610030,1751235042038,-151.0,0.00018346,2]
[368610032,1751235042048,-151.0,0.00018346,2]
[368610034,1751235042058,-855.50237,0.00018346,2]
[368610036,1751235042068,-855.50237,0.00018346,2]
[368610038,1751235042078,-151.0,0.00018346,2]
[368610040,1751235042087,-151.0,0.00018346,2]
[368610042,1751235042098,-152.394246,0.00018346,2]
[368610044,1751235042107,-151.0,0.00018346,2]
[368610046,1751235042117,-355.81657,0.00018346,2]
[368610048,1751235042128,-185.08732098,0.00018346,2]
[368611370,1751235069132,319.63007272,0.00027397,120]
[368611371,1751235085842,150.5,0.0002609,120]
[368611372,1751235086355,150.5,0.0002608,120]
[368611373,1751235086889,150.5,0.0002607,120]
[368611374,1751235142331,337.56,0.0002612,120]
[368611376,1751235205884,150.5,0.0002609,120]
[368611377,1751235206319,150.5,0.0002608,120]
[368611378,1751235206747,150.5,0.0002607,120]
[368611379,1751235210362,226.09,0.00013699,2]
[368611381,1751235353415,-57000.0,0.0003849,120]
[368611382,1751235353441,-1000.0,0.0003849,60]
[368611383,1751235353464,-1000.0,0.0003849,60]
[368611384,1751235353488,-500.0,0.0003849,120]
[368611385,1751235353511,-483.0984217,0.0003849,120]
[368611386,1751235353534,-1000.0,0.0003849,60]
[368611387,1751235353557,-2287.17,0.0003849,120]
[368611388,1751235353583,-2287.17,0.0003849,120]
[368611389,1751235353607,-2287.17,0.0003849,120]
[368611390,1751235353632,-2287.17,0.0003849,120]
[368611391,1751235353657,-2287.17,0.0003849,120]
[368611392,1751235353680,-2287.17,0.0003849,120]
[368611393,1751235353704,-2287.17,0.0003849,120]
[368611394,1751235353729,-2287.17,0.0003849,120]
[368611395,1751235353753,-2287.17,0.0003849,120]
[368611396,1751235353777,-2287.17,0.0003849,120]
[368611397,1751235353801,-2287.17,0.0003849,120]
[368611398,1751235353824,-2287.17,0.0003849,120]
[368611399,1751235353848,-2287.17,0.0003849,120]
[368611400,1751235353871,-2287.17,0.0003849,120]
[368611401,1751235353898,-2287.17,0.0003849,120]
[368611402,1751235353923,-2287.17,0.0003849,120]
[368611403,1751235353947,-2287.17,0.0003849,120]
[368611404,1751235353972,-2287.17,0.0003849,120]
[368611405,1751235353996,-2287.17,0.0003849,120]
[368611406,1751235354020,-2287.17,0.0003849,120]
[368611407,1751235354043,-2287.17,0.0003849,120]
[368611408,1751235354069,-2287.17,0.0003849,120]
[368611409,1751235354093,-2287.17,0.0003849,120]
[368611410,1751235354117,-1000.0,0.0003849,60]
[368611411,1751235354143,-2287.33309354,0.0003849,120]
[368611412,1751235354180,-1000.0,0.0003849,60]
[368611413,1751235354208,-1000.0,0.0003849,60]
[368611414,1751235354237,-8434.32,0.0003849,120]
[368611415,1751235354265,-8434.32,0.0003849,120]
[368611416,1751235354291,-8434.32,0.0003849,120]
[368611417,1751235354317,-8434.32,0.0003849,120]
[368611418,1751235354344,-8434.32,0.0003849,120]
[368611419,1751235354377,-8434.32,0.0003849,120]
[368611420,1751235354405,-8434.32,0.0003849,120]
[368611421,1751235354433,-8434.32,0.0003849,120]
[368611422,1751235354462,-8434.32,0.0003849,120]
[368611423,1751235354489,-8434.32,0.0003849,120]
[368611424,1751235354517,-8434.32,0.0003849,120]
[368611425,1751235354544,-8434.32,0.0003849,120]
[368611426,1751235354571,-170.0,0.0003849,60]
[368611427,1751235354598,-8434.32,0.0003849,120]
[368611428,1751235354632,-8434.32,0.0003849,120]
[368611429,1751235354661,-8434.32,0.0003849,120]
[368611430,1751235354688,-8434.32,0.0003849,120]
[368611431,1751235354716,-8434.32,0.0003849,120]
[368611432,1751235354744,-8434.32,0.0003849,120]
[368611433,1751235354772,-8434.32,0.0003849,120]
[368611434,1751235354800,-8434.32,0.0003849,120]
[368611435,1751235354828,-8434.32,0.0003849,120]
[368611436,1751235354856,-8434.32,0.0003849,120]
[368611437,1751235354886,-8434.32,0.0003849,120]
[368611438,1751235354916,-8434.41472426,0.0003849,120]
[368611439,1751235354943,-171.57051963,0.0003849,60]
[368611440,1751235354969,-2249.43699851,0.0003849,120]
[368611441,1751235354996,-2122.43609946,0.0003849,120]
[368611442,1751235355023,-1511.18135685,0.0003849,120]
[368611443,1751235355053,-804.9325333,0.0003849,120]
[368611444,1751235355080,-361.61357942,0.0003849,120]
[368611445,1751235355110,-591.07441754,0.0003849,120]
[368611446,1751235355144,-344.18137987,0.0003849,120]
[368611447,1751235355175,-201.0,0.0003849,120]
[368611448,1751235355203,-543205.49,0.0003849,60]
[368611449,1751235355231,-259.0,0.0003849,60]
[368611450,1751235355257,-1100.06359503,0.0003849,120]
[368611451,1751235355283,-562.39738252,0.0003849,120]
[368611452,1751235355310,-386.0,0.0003849,120]
[368611453,1751235355336,-207.0,0.0003849,120]
[368611454,1751235355363,-2000.0,0.0003849,120]
[368611455,1751235355391,-279829.22800012,0.0003849,120]
[368611456,1751235355849,-629.86165847,0.0003849,120]
[368611457,1751235355877,-5000.0,0.0003849,120]
[368611458,1751235355906,-1589.02,0.0003849,120]
[368611459,1751235355931,-3000.0,0.0003849,120]
[368611460,1751235355957,-742.36385814,0.0003849,120]
[368611461,1751235355984,-1322093.0,0.0003849,90]
[368611462,1751235356009,-10038.0,0.0003849,60]
[368611463,1751235356034,-10042.0,0.0003849,60]
[368611464,1751235356059,-10038.0,0.0003849,60]
[368611465,1751235356084,-10038.0,0.0003849,60]
[368611466,1751235356109,-10038.0,0.0003849,60]
[368611467,1751235356134,-6359.55591076,0.0003849,60]
[368611468,1751235356160,-619612.32095634,0.0003849,60]
[368611469,1751235356186,-81410.43,0.0003849,60]
[368611470,1751235356215,-324.0,0.0003849,120]
[368611471,1751235376154,932.23381891,0.0003849,60]
[368611473,1751235425782,2666.62742467,0.0003849,120]
[368611480,1751235910097,7552.38,0.00014,2]
[368611481,1751235910122,8000.0,0.00014,2]
[368611482,1751235910148,8000.0,0.00014,2]
[368611483,1751235910172,8000.0,0.00014,2]
[368611484,1751235910197,8000.0,0.00014,2]
[368611485,1751235910220,8000.0,0.00014,2]
[368611486,1751235910242,8000.0,0.00014,2]
[368611487,1751235910264,8000.0,0.00014,2]
[368611488,1751235910288,8000.0,0.00014,2]
[368611489,1751235910310,8000.0,0.00014,2]
[368611490,1751235910335,8000.0,0.00014,2]
[368611491,1751235910360,8000.0,0.00014,2]
[368611492,1751235910384,8000.0,0.00014,2]
[368611493,1751235910409,32918.13784495,0.00014,2]
[368611494,1751235910435,40000.0,0.00014,2]
[368611495,1751235910460,40000.0,0.00014,2]
[368611496,1751235910485,29684.66674523,0.00014,2]
[368611497,1751236015139,516.0,0.00013198,2]
[368611503,1751236128175,355227.82,0.00038488,60]
[368611512,1751236232091,-250.0,0.00016978,2]
[368611514,1751236232101,-600.0,0.00016987,2]
[368611515,1751236232111,-300.0,0.00016987,2]
[368611516,1751236232120,-300.0,0.00016987,2]
[368611517,1751236232131,-1200.0,0.00016987,2]
[368611518,1751236232143,-14480.87,0.00016988,2]
[368611519,1751236232152,-983.12,0.00017009,2]
[368611520,1751236232161,-151.0,0.00017009,2]
[368611521,1751236232171,-23900.0,0.00017019,2]
[368611522,1751236232180,-168.11,0.00017026,2]
[368611523,1751236232190,-5076.51,0.00017031,2]
[368611524,1751236232199,-200.0,0.00017046,7]
[368611525,1751236232210,-2086.28,0.00017053,2]
[368611526,1751236232221,-516.0,0.00017098,6]
[368611527,1751236232231,-1711.38,0.00017106,2]
[368611528,1751236232241,-200.0,0.0001712,2]
[368611529,1751236232251,-500.0,0.00017121,2]
[368611530,1751236232260,-1000.0,0.00017122,2]
[368611531,1751236232270,-209.08,0.00017175,2]
[368611532,1751236232280,-150.0,0.0001719,2]
[368611533,1751236232289,-301.82,0.00017194,2]
[368611534,1751236232300,-943.8,0.0001721,2]
[368611535,1751236232310,-462.71,0.00017341,2]
[368611536,1751236232322,-789.96,0.00017341,2]
[368611537,1751236232332,-154.58,0.000174,2]
[368611538,1751236232341,-1017.19,0.000174,2]
[368611539,1751236232351,-154.58,0.00017407,2]
[368611540,1751236232360,-154.58,0.00017413,2]
[368611541,1751236232370,-337.56,0.00017413,2]
[368611542,1751236232379,-154.58,0.00017419,2]
[368611543,1751236232388,-154.58,0.00017425,2]
[368611544,1751236232397,-154.58,0.00017431,2]
[368611545,1751236232407,-154.58,0.00017438,2]
[368611547,1751236232416,-154.58,0.00017444,2]
[368611549,1751236232425,-154.58,0.0001745,2]
[368611551,1751236232435,-154.58,0.00017456,2]
[368611553,1751236232444,-154.58,0.00017463,2]
[368611555,1751236232453,-154.58,0.00017469,2]
[368611557,1751236232462,-154.58,0.00017475,2]
[368611559,1751236232471,-154.58,0.00017481,2]
[368611561,1751236232480,-154.58,0.00017487,2]
[368611563,1751236232489,-166.66,0.0001754,2]
[368611564,1751236232498,-204.0,0.0001766,2]
[368611566,1751236232507,-355.6,0.00017664,2]
[368611568,1751236232516,-910.9,0.00017664,2]
[368611571,1751236232525,-171.21,0.00017664,2]
[368611573,1751236232535,-338.04,0.00017664,2]
[368611576,1751236232544,-204.0,0.00017679,2]
[368611579,1751236232553,-999.99,0.00017728,2]
[368611582,1751236232563,-150.99,0.00017728,2]
[368611585,1751236232573,-9833.96,0.00017728,2]
[368611589,1751236232582,-9999.99,0.00017728,2]
[368611591,1751236232592,-417.0,0.0001779,2]
[368611593,1751236232601,-2500.0,0.00017818,2]
[368611595,1751236232610,-417.0,0.00017841,2]
[368611597,1751236232619,-168.0,0.00017862,2]
[368611599,1751236232628,-168.0,0.0001787,2]
[368611601,1751236232638,-168.0,0.0001792,2]
[368611603,1751236232647,-158.120444,0.0001795,2]
[368611605,1751236232656,-151.0,0.0001795,2]
[368611607,1751236232665,-151.0,0.0001795,2]
[368611609,1751236232674,-151.0,0.0001795,2]
[368611611,1751236232683,-153.831517,0.0001795,2]
[368611613,1751236232692,-151.0,0.0001795,2]
[368611615,1751236232701,-455.497296,0.00017979,2]
[368611616,1751236232711,-327.28,0.00018,2]
[368611618,1751236232720,-4111.0,0.00018084,2]
[368611620,1751236232729,-228.5849,0.00018087,2]
[368611622,1751236232738,-168.0,0.00018135,2]
[368611624,1751236232747,-4190.84515877,0.00018154,2]
[368611626,1751236232756,-1596.44167826,0.00018154,2]
[368611628,1751236232765,-3408.53555,0.0001816,2]
[368611630,1751236232774,-151.0,0.00018187,2]
[368611632,1751236232783,-151.0,0.00018187,2]
[368611634,1751236232792,-153.257045,0.00018187,2]
[368611636,1751236232801,-151.0,0.00018187,2]
[368611638,1751236232810,-151.0,0.00018187,2]
[368611640,1751236232821,-151.0,0.00018187,2]
[368611642,1751236232830,-151.0,0.00018187,2]
[368611644,1751236232839,-151.0,0.00018187,2]
[368611646,1751236232848,-151.0,0.00018187,2]
[368611648,1751236232857,-151.0,0.00018187,2]
[368611649,1751236232866,-153.869437,0.00018187,2]
[368611651,1751236232876,-617.582891,0.00018187,2]
[368611653,1751236232885,-617.582891,0.00018187,2]
[368611655,1751236232894,-200.0,0.00018198,2]
[368611657,1751236232903,-200.0,0.00018199,2]
[368611659,1751236232912,-151.0,0.00018213,2]
[368611661,1751236232921,-151.0,0.00018213,2]
[368611663,1751236232931,-151.0,0.00018213,2]
[368611665,1751236232940,-151.0,0.00018213,2]
[368611667,1751236232949,-151.0,0.00018213,2]
[368611669,1751236232959,-151.0,0.00018213,2]
[368611671,1751236232968,-215.257423,0.00018213,2]
[368611673,1751236232979,-153.613241,0.00018213,2]
[368611675,1751236232988,-617.582891,0.00018213,2]
[368611677,1751236232998,-617.582891,0.00018213,2]
[368611679,1751236233007,-168.0,0.00018219,2]
[368611681,1751236233017,-4008.93755726,0.0001822,2]
[368611684,1751236233030,-102.06244274,0.0001822,2]
[368611686,1751236233039,-151.0,0.00018226,2]
[368611687,1751236233048,-168.0,0.00018239,2]
[368611689,1751236233058,-168.11,0.00018242,2]
[368611691,1751236233069,-500.0,0.00018254,2]
[368611693,1751236233079,-500.0,0.00018254,2]
[368611695,1751236233089,-500.0,0.00018254,2]
[368611697,1751236233099,-500.0,0.00018254,2]
[368611699,1751236233108,-215.86619337,0.00018254,2]
[368611702,1751236233120,-284.13380663,0.00018254,2]
[368611704,1751236233131,-500.0,0.00018254,2]
[368611706,1751236233141,-500.0,0.00018254,2]
[368611708,1751236233153,-500.0,0.00018254,2]
[368611710,1751236233163,-500.0,0.00018254,2]
[368611712,1751236233173,-500.0,0.00018254,2]
[368611713,1751236233183,-500.0,0.00018254,2]
[368611716,1751236233194,-500.0,0.00018254,2]
[368611717,1751236233204,-500.0,0.00018254,2]
[368611719,1751236233214,-500.0,0.00018254,2]
[368611722,1751236233224,-500.0,0.00018254,2]
[368611724,1751236233234,-500.0,0.00018254,2]
[368611725,1751236233244,-500.0,0.00018254,2]
[368611727,1751236233253,-500.0,0.00018254,2]
[368611729,1751236233263,-500.0,0.00018254,2]
[368611731,1751236233273,-500.0,0.00018254,2]
[368611733,1751236233282,-500.0,0.00018254,2]
[368611736,1751236233292,-500.0,0.00018254,2]
[368611738,1751236233302,-500.0,0.00018254,2]
[368611740,1751236233311,-500.0,0.00018254,2]
[368611741,1751236233323,-500.0,0.00018254,2]
[368611743,1751236233332,-500.0,0.00018254,2]
[368611745,1751236233341,-500.0,0.00018254,2]
[368611747,1751236233351,-500.0,0.00018254,2]
[368611750,1751236233361,-500.0,0.00018254,2]
[368611751,1751236233371,-500.0,0.00018254,2]
[368611753,1751236233380,-500.0,0.00018254,2]
[368611755,1751236233390,-500.0,0.00018254,2]
[368611757,1751236233400,-500.0,0.00018254,2]
[368611759,1751236233410,-500.0,0.00018254,2]
[368611760,1751236233420,-500.0,0.00018254,2]
[368611761,1751236233430,-500.0,0.00018254,2]
[368611762,1751236233440,-500.0,0.00018254,2]
[368611763,1751236233450,-500.0,0.00018254,2]
[368611764,1751236233460,-500.0,0.00018254,2]
[368611765,1751236233470,-500.0,0.00018254,2]
[368611766,1751236233480,-500.0,0.00018254,2]
[368611767,1751236233490,-500.0,0.00018254,2]
[368611768,1751236233500,-500.0,0.00018254,2]
[368611769,1751236233510,-500.0,0.00018254,2]
[368611770,1751236233519,-500.0,0.00018254,2]
[368611771,1751236233529,-500.0,0.00018254,2]
[368611772,1751236233539,-500.0,0.00018254,2]
[368611773,1751236233548,-500.0,0.00018254,2]
[368611774,1751236233558,-500.0,0.00018254,2]
[368611775,1751236233569,-500.0,0.00018254,2]
[368611776,1751236233579,-500.0,0.00018254,2]
[368611777,1751236233588,-500.0,0.00018254,2]
[368611778,1751236233598,-500.0,0.00018254,2]
[368611779,1751236233607,-500.0,0.00018254,2]
[368611781,1751236233616,-500.0,0.00018254,2]
[368611783,1751236233626,-500.0,0.00018254,2]
[368611785,1751236233635,-500.0,0.00018254,2]
[368611786,1751236233645,-500.0,0.00018254,2]
[368611788,1751236233654,-500.0,0.00018254,2]
[368611790,1751236233664,-500.0,0.00018254,2]
[368611792,1751236233673,-500.0,0.00018254,2]
[368611794,1751236233683,-500.0,0.00018254,2]
[368611797,1751236233693,-500.0,0.00018254,2]
[368611798,1751236233703,-500.0,0.00018254,2]
[368611800,1751236233713,-500.0,0.00018254,2]
[368611802,1751236233722,-500.0,0.00018254,2]
[368611804,1751236233732,-500.0,0.00018254,2]
[368611806,1751236233742,-500.0,0.00018254,2]
[368611808,1751236233751,-500.0,0.00018254,2]
[368611810,1751236233761,-500.0,0.00018254,2]
[368611813,1751236233772,-500.0,0.00018254,2]
[368611815,1751236233782,-500.0,0.00018254,2]
[368611817,1751236233791,-500.0,0.00018254,2]
[368611819,1751236233801,-500.0,0.00018254,2]
[368611821,1751236233810,-500.0,0.00018254,2]
[368611823,1751236233824,-500.0,0.00018254,2]
[368611825,1751236233833,-500.0,0.00018254,2]
[368611827,1751236233842,-500.0,0.00018254,2]
[368611829,1751236233851,-500.0,0.00018254,2]
[368611831,1751236233860,-500.0,0.00018254,2]
[368611833,1751236233869,-500.0,0.00018254,2]
[368611835,1751236233878,-500.0,0.00018254,2]
[368611837,1751236233887,-500.0,0.00018254,2]
[368611838,1751236233896,-500.0,0.00018254,2]
[368611840,1751236233906,-500.0,0.00018254,2]
[368611842,1751236233915,-500.0,0.00018254,2]
[368611844,1751236233924,-500.0,0.00018254,2]
[368611846,1751236233933,-500.0,0.00018254,2]
[368611849,1751236233943,-500.0,0.00018254,2]
[368611851,1751236233952,-500.0,0.00018254,2]
[368611853,1751236233961,-500.0,0.00018254,2]
[368611854,1751236233971,-500.0,0.00018254,2]
[368611857,1751236233980,-500.0,0.00018254,2]
[368611858,1751236233989,-500.0,0.00018254,2]
[368611861,1751236233999,-500.0,0.00018254,2]
[368611863,1751236234008,-500.0,0.00018254,2]
[368611865,1751236234018,-500.0,0.00018254,2]
[368611867,1751236234027,-500.0,0.00018254,2]
[368611868,1751236234036,-500.0,0.00018254,2]
[368611870,1751236234045,-321.0635,0.00018254,2]
[368611873,1751236234055,-150.0,0.00018254,2]
[368611874,1751236234067,-151.0,0.00018277,2]
[368611876,1751236234077,-282.50596,0.00018283,2]
[368611879,1751236234088,-151.0,0.00018283,2]
[368611880,1751236234097,-166.097063,0.00018283,2]
[368611882,1751236234107,-151.0,0.00018283,2]
[368611885,1751236234119,-151.0,0.00018283,2]
[368611886,1751236234128,-617.582891,0.00018283,2]
[368611888,1751236234138,-617.582891,0.00018283,2]
[368611890,1751236234152,-151.0,0.00018287,2]
[368611892,1751236234161,-151.0,0.00018287,2]
[368611894,1751236234171,-205.940999,0.00018287,2]
[368611896,1751236234180,-151.0,0.00018287,2]
[368611898,1751236234189,-151.0,0.00018287,2]
[368611900,1751236234198,-151.0,0.00018287,2]
[368611902,1751236234208,-151.0,0.00018287,2]
[368611904,1751236234217,-151.0,0.00018287,2]
[368611906,1751236234227,-195.42984,0.00018287,2]
[368611908,1751236234236,-617.582891,0.00018287,2]
[368611910,1751236234245,-617.582891,0.00018287,2]
[368611912,1751236234255,-617.582891,0.00018287,2]
[368611915,1751236234264,-617.582891,0.00018287,2]
[368611916,1751236234273,-151.0,0.00018295,2]
[368611918,1751236234283,-205.940999,0.00018295,2]
[368611920,1751236234293,-151.0,0.00018295,2]
[368611922,1751236234302,-617.582891,0.00018295,2]
[368611924,1751236234312,-617.582891,0.00018295,2]
[368611926,1751236234326,-168.0,0.00018306,2]
[368611929,1751236234336,-151.0,0.0001832,2]
[368611931,1751236234346,-205.940999,0.0001832,2]
[368611932,1751236234355,-151.0,0.0001832,2]
[368611935,1751236234366,-617.582891,0.0001832,2]
[368611937,1751236234375,-617.582891,0.0001832,2]
[368611938,1751236234385,-314.25831276,0.00018345,2]
[368611940,1751236234395,-170.72924902,0.00018346,2]
[368611942,1751236234405,-151.0,0.00018346,2]
[368611945,1751236234415,-151.0,0.00018346,2]
[368611947,1751236234425,-289.242713,0.00018346,2]
[368611949,1751236234435,-289.242713,0.00018346,2]
[368611950,1751236234444,-151.0,0.00018346,2]
[368611952,1751236234454,-151.0,0.00018346,2]
[368611955,1751236234464,-151.0,0.00018346,2]
[368611956,1751236234474,-500.0,0.00018346,2]
[368611959,1751236234483,-140.41609855,0.00018346,2]
[368611963,1751236234516,-9.58390145,0.00018346,2]
[368611965,1751236234526,-285.44869939,0.00018346,2]
[368611967,1751236234537,-214.55130061,0.00018346,2]
[368611969,1751236234547,-502.0,0.00018346,2]
[368611971,1751236234557,-150.0,0.00018346,2]
[368611973,1751236234572,-207.11161979,0.00018346,2]
[368611975,1751236234581,-150.0,0.00018346,2]
[368611977,1751236234590,-150.0,0.00018346,2]
[368611979,1751236234600,-92.50183059,0.00018346,2]
[368611980,1751236234615,-57.49816941,0.00018346,2]
[368611981,1751236234625,-232.49243201,0.00018346,2]
[368611982,1751236234636,-267.50756799,0.00018346,2]
[368611983,1751236234645,-201.04088857,0.00018346,2]
[368611984,1751236234654,-446.91154344,0.00018346,2]
[368611985,1751236234683,-53.08845656,0.00018346,2]
[368611986,1751236234693,-150.0,0.00018346,2]
[368611987,1751236234702,-500.0,0.00018346,2]
[368611988,1751236234711,-150.0,0.00018346,2]
[368611989,1751236234720,-2669.0,0.00018346,2]
[368611990,1751236234728,-528.0,0.00018346,2]
[368611991,1751236234737,-526.16059122,0.00018346,2]
[368611992,1751236234746,-150.0,0.00018346,2]
[368611993,1751236234756,-500.0,0.00018346,2]
[368611994,1751236234765,-4190.84515863,0.00018347,2]
[368611995,1751236234774,-151.722732,0.00018358,2]
[368611996,1751236234783,-151.0,0.00018358,2]
[368611997,1751236234792,-447.259148,0.00018358,2]
[368611998,1751236234802,-447.259148,0.00018358,2]
[368611999,1751236234811,-151.0,0.00018358,2]
[368612001,1751236234828,-261.063765,0.00018358,2]
[368612003,1751236234837,-151.0,0.00018358,2]
[368612005,1751236234846,-151.0,0.00018358,2]
[368612007,1751236234856,-159.709708,0.00018358,2]
[368612010,1751236234866,-151.0,0.00018358,2]
[368612012,1751236234874,-355.81657,0.00018358,2]
[368612014,1751236234884,-355.81657,0.00018358,2]
[368612015,1751236234893,-151.0,0.00018358,2]
[368612017,1751236234902,-151.0,0.00018358,2]
[368612019,1751236234911,-289.242713,0.00018358,2]
[368612022,1751236234921,-289.242713,0.00018358,2]
[368612023,1751236234930,-151.0,0.00018358,2]
[368612026,1751236234940,-164.715478,0.00018358,2]
[368612028,1751236234950,-151.0,0.00018358,2]
[368612029,1751236234959,-151.0,0.00018358,2]
[368612031,1751236234968,-205.940999,0.00018358,2]
[368612034,1751236234977,-151.0,0.00018358,2]
[368612036,1751236234987,-617.582891,0.00018358,2]
[368612038,1751236234996,-617.582891,0.00018358,2]
[368612039,1751236235005,-151.0,0.00018378,2]
[368612042,1751236235015,-205.940999,0.00018378,2]
[368612044,1751236235024,-151.0,0.00018378,2]
[368612071,1751236235281,-617.582891,0.00018378,2]
[368612074,1751236235305,-617.582891,0.00018378,2]
[368612076,1751236235321,-151.0,0.00018383,2]
[368612078,1751236235332,-151.0,0.00018383,2]
[368612080,1751236235342,-151.0,0.00018383,2]
[368612082,1751236235351,-249.339622,0.00018383,2]
[368612084,1751236235361,-168.0,0.00018412,2]
[368612086,1751236235372,-3303.0,0.00018412,2]
[368612088,1751236235382,-151.0,0.00018446,2]